Workbook

Sheet Beställd utbildning
D1: BESTÄLLD UTBILDNING - KALKYLMALL
D3: Denna kalkylmodell ska enbart användas vid beräkning av kostnader som debiteras vid beställd. Syftet med modellen är att prissättningen ska leda till att full kostnadstäckning uppnås.
D5: Vid kalkylering är det framför allt viktigt att tänka på följande:
E6: → Den ersättning som begärs för olika uppdrag ska täcka alla kostnader (direkta och indirekta) som uppkommit pga uppdraget. Förutom lönekostnader inkl sociala kostnader, kan kostnaderna utgöras av t ex flygresor, hotellkostnader, hyra av utrustning eller föreläsningsrum, litteratur, mm som föranletts av uppdraget.
E8: → Indirekta kostnader ingår i kalkylen, men för beställd utbildning så reduceras universitetsgemensam INDI med 50%. Beräkningen av de indirekta kostnaderna och reduktionen görs automatiskt i kalkylmallen.
E10: → Timkostnad ska beräknas så att hänsyn tas till debiterbar tid. Hur debiterbar tid beräknas framgår av avsnittet Beräkning av debiterbar timkostnad och tid, längst ned på detta blad.
D11: Anvisning för hur Du fyller i kalkylmallen:
E12: Alla kostnader anges i kronor och exklusive moms!
E13: Vita celler/rader är skrivbara. Ljusblå är beräkning, fler rader kan läggas till vid behov för dessa.
E14: Kalkylen ska kontrolleras och attesteras av administrativ chef.
F20: GRUNDLÄGGANDE UPPGIFTER | P20: Grundinfo: Fyll i uppgifter om institution, institutionskod, namn, datum i blad "1. Grundinfo".
F22: Inst kod
F23: Uppdragets start, mån/år
F24: Uppdragets slut, mån/år
F26: Inst projektnummer (UBW)
F27: Uppdragsansvarig
F28: Kurs/Beskrivning
E33: DIREKTA KOSTNADER DIREKTA KOSTNADER DIREKTA KOSTNADER DIREKTA KOSTNADER DIREKTA KOSTNADER DIREKTA KOSTNADER DIREKTA KOSTNADER DIREKTA KOSTNADER DIREKTA KOSTNADER DIREKTA KOSTNADER | F33: PROJEKTKOSTNADER - INSTITUTION
P34: A. Hit förs lönekostnader för dem som arbetar i uppdraget t ex lärare, administratörer. Även externa lärare med endast A-skatt. Räkna ut timpris enligt "Beräkning debiterbar timkostnad" längst ned i fliken Uppdragsutbildningen för en person i taget. Obs! Om fler rader läggs till, tänk på att kopiera formel i kolumn K.
F35: A. Personalkostnader
F37: Namn/Roll | G37: Arbetsmoment | I37: Antal timmar | J37: Timkostnad (se beräkning) | K37: Kostnad exkl. LKP
G38: Planering av kurs | K38: =IF(OR(I38="",J38=""),0,(I38*J38)) -> 0
G39: Föreläsning | K39: =IF(OR(I39="",J39=""),0,(I39*J39)) -> 0
G40: Distansundervisning | K40: 0
G41: Handledning | K41: 0
G42: Examination | K42: 0
G43: LADOK-rapportör | K43: 0
G44: Kostnad för utbildningsnämnd och kursplaner | K44: 0
G45: Extern lärare med A-skatt | K45: 0
K46: 0
K47: 0
F50: Summa Personalkostnader exkl. lönekostnadspålägg (LKP) | I50: =SUM(I$38:I47) -> 0 | K50: =SUM(K$38:K47) -> 0
F52: Sociala avgifter (LKP) - 2024 | J52: 0.5401
F53: Semestertillägg | J53: 0.0185
I54: LKP Total | J54: =SUM(J52:J53) -> 0.5586
F57: Summa personalkostnad där lönekostnadspålägg (LKP) ingår | K57: =K50*(1+J54) -> 0
F59: B. Driftkostnader | P59: B. Här tas hänsyn till de driftkostnader som är direkt hänförbara till uppdraget men inte ingår i personalkostnader.
F61: B.1 Direkta driftkostnader (Lokal- och KI-interna kostnader kommer under övriga driftkostnader) | P61: B.1 Här tas alla direkta driftkostnader upp, t.ex. Externa lärare, utrustning, fika/lunch, m.m.
F63: Driftkostnader | K63: Summa kostnad
F64: Extern lärare med f-skatt (exkl. moms)
F65: Utrustning
F66: Fika/lunch
F67: Resor
F68: Traktamenta
F69: Kurslitteratur
F74: Summa direkta driftkostnader | K74: =SUM(K$64:K71) -> 0
F76: B.2 Övriga driftkostnader | P76: B.2 Här tas alla övriga driftskostnader upp så som lokalkostnader och konstader för instituionens stödverksamhet. För instituionens stödverksamhet som beräknas ett fast belopp som avser den tid och kostnader som belastar instituionens egen stödverksamhet. Ej instituionens INDI-procentsats.
F78: Lokalkostnader | K78: Summa kostnad
F79: Kontorslokal
F80: Utbildningslokal
F84: Summa Övriga driftkostnader | K84: =SUM(K$79:K81) -> 0
F87: Summa driftkostnader | K87: =K74+K84 -> 0
F90: DELSUMMA DIREKTA PROJEKTKOSTNADER | K90: =K57+K87 -> 0
E93: INDIREKTA KOSTNADER | F93: INDIREKTA KOSTNADER (INDI)
F95: C. Beräkning indirekta kostnader | P95: C. För kostnader i uppdrag som avser beställd utbildning (verksamhetskod 521) görs inte fullt påslag för indirekta kostnader (INDI).Universitetsgemensam INDI reduceras med 50%. Detta beräknas automatiskt i kalkylmallen när institutionskod har angivits i grundläggande uppgifter.
F97: Indirekta kostnader | K97: Summa kostnad
F98: Universitetsgemensamma kostnader | J98: =_xlfn.IFNA(VLOOKUP($G$22,Tabeller!$R$4:$V$27,4,0)*0.5,0) -> 0 | K98: =J98*(K57+K74) -> 0
F99: Institutionsgemensamma kostnader | J99: =_xlfn.IFNA(VLOOKUP($G$22,Tabeller!$R$4:$V$27,3,0),0) -> 0 | K99: =J99*(K57+K74) -> 0
F102: Summa indirekta kostnader | K102: =K98+K99 -> 0
F106: DELSUMMA INDIREKTA PROJEKTKOSTNADER | K106: =K102 -> 0
E109: SUMMA | F109: FULL KOSTNADSSPECIFIKATION
P110: Summa totala kostnader exkl moms - debiteras statliga högskolor och univetsitet.
F111: SUMMA KOSTNADER (EXKL MOMS) | J111: =SUM($K106:K106)+SUM($K90:K90) -> 0
P112: Summa totala kostnader inkl moms - debiteras icke-statliga högskolor.
F113: SUMMA KOSTNADER (INKL MOMS) | J113: =J111*1.25 -> 0
F116: Administrativ chef
F119: Signatur
F122: Namnförtydligande
F128: BERÄKNING AV DEBITERBAR TIMKOSTNAD OCH TID (Exkl. LKP) | P128: För att kunna bestämma direkt tid eller s k debiterbar tid, räknas tiden bort för betald ledighet och indirekt tid såsom administration, utbildning och utvecklingsarbete etc.
F130: Ange månadslön (hela kronor):
F132: Arbetstid på årsbas | G132: Dagar | H132: Timmar totalt | P132: I kalkylen bör standardtid vara i stort sett oförändrad år från år, även om det aktuella årets timmar beror på hur helgdagarna infaller.
F133: 52 veckor x 40 tim (heltid) | G133: 260 | H133: =52*40 -> 2080
F134: - 2 veckor helgdagar avgår | G134: 10 | H134: =2*40 -> 80
F135: Betald tid | G135: =G133-G134 -> 250 | H135: =H133-H134 -> 2000
F136: - betalda semesterdagar | G136: 35 | H136: =G136*8 -> 280
F137: - övrig betald frånvaro | G137: 5 | H137: =G137*8 -> 40
F138: STANDARDTID | G138: =G135-G136-G137 -> 210 | H138: =H135-H136-H137 -> 1680
F139: - egen administration | G139: 10 | H139: =G139*8 -> 80
F140: - egen utveckling etc | G140: 25 | H140: =G140*8 -> 200
F141: - resor, sammankomster | G141: 25 | H141: =G141*8 -> 200
F142: Summa indirekt tid | G142: =SUM(G139:G141) -> 60 | H142: =SUM(H139:H141) -> 480
F143: DEBITERBAR TID (DIREKT TID) | G143: =G138-G142 -> 150 | H143: =H138-H142 -> 1200
F146: =IF(H130="","Ange månadslön","Timkostnad exkl. LKP externa uppdrag:") -> Ange månadslön | H146: =ROUND(H130/(H143/12),2) -> 0 | I146: kr/tim

Sheet Tabeller
A1: Inst | F1: Pris | H1: Riskmarginal | J1: ÅR | K1: Mån | M1: Basersättning | R1: Procentpåslag för indirekta kostnader 2025
A2: C1 | C2: Välj kostnadspost från rullista eller skriv in ett värde | E2: Välj kostnadspost från rullista | F2: Välj arb.moment | H2: 0 | J2: 2025 | K2: 01 | M2: HP | N2: 0-7 delt. | O2: 8-19 delt. | P2: 20- delt. | R2: Utbildning på grundnivå och avancerad nivå
A3: C2 | C3: Kurslitteratur | E3: Utredningsarbete/Förstudie | F3: 640 | H3: =H2+0.01 -> 0.01 | J3: =J2+1 -> 2026 | K3: 02 | M3: 0- | N3: 19018.125 | O3: 49447.125 | P3: 59590.125 | R3: Inst | S3: Namn | T3: Institution | U3: Universitet | V3: Summa
A4: C3 | C4: Teknik/Video/Lärobjekt | E4: Offert/Upphandling | F4: 640 | H4: 0.02 | J4: 2027 | K4: 03 | M4: 8- | N4: 38036.25 | O4: 59590.125 | P4: 72268.875 | R4: C1 | S4: MTC | T4: 0.1195 | U4: 0.38 | V4: 0.4995
A5: C4 | C5: Hotell, Rese- och traktamentskostnader | E5: Förhandling kund | F5: 640 | H5: 0.03 | J5: 2028 | K5: 04 | M5: 16- | N5: 59590.125 | O5: 79876.125 | P5: 91287 | R5: C2 | S5: MBB | T5: 0.1094 | U5: 0.38 | V5: 0.4894
A6: C5 | C6: Pärmar/mappar/block | E6: Juridisk bedömning | F6: 750 | H6: 0.04 | J6: 2029 | K6: 05 | M6: 45- | N6: 68465.25 | O6: 96358.5 | P6: 112840.875 | R6: C3 | S6: FyFa | T6: 0.17 | U6: 0.38 | V6: 0.55
A7: C6 | C7: Kostnader undervisningslokal | E7: Utökat budgetarbete - flera parter | F7: 640 | H7: 0.05 | J7: 2030 | K7: 06 | M7: 60- | N7: 82411.875 | O7: 110305.125 | P7: 150877.125 | R7: C4 | S7: Neuro | T7: 0.12 | U7: 0.38 | V7: 0.5
A8: C7 | C8: Marknadsföring/annonsering/utskick | E8: Beställning av kurslitteratur/Fika/lunch | F8: 430 | H8: 0.06 | J8: 2031 | K8: 07 | R8: C5 | S8: CMB | T8: 0.12 | U8: 0.38 | V8: 0.5
A9: C8 | E9: Bokning Lokaler, Resor, hotell mm. | F9: 430 | H9: 0.07 | J9: 2032 | K9: 08 | R9: C6 | S9: IMM | T9: 0.2851 | U9: 0.38 | V9: 0.6651
A10: CA | E10: Produktion av kursmaterial och pärmar | F10: 430 | H10: 0.08 | J10: =J9+1 -> 2033 | K10: 09 | R10: C7 | S10: LIME | T10: 0.179 | U10: 0.38 | V10: 0.559
A11: CB | E11: Marknadsföring/annonsering/Utskick | F11: 430 | H11: =H10+0.01 -> 0.09 | J11: 2034 | K11: 10 | R11: C8 | S11: MEB | T11: 0.2235 | U11: 0.38 | V11: 0.6035
A12: CC | E12: Rekrytering av deltagare | F12: 530 | H12: 0.1 | J12: 2035 | K12: 11 | R12: CC | S12: KM | T12: 0.12 | U12: 0.38 | V12: 0.5
A13: CD | E13: Webbutveckling | F13: 640 | J13: 2036 | K13: 12 | R13: D1 | S13: KIDS | T13: 0.1896 | U13: 0.38 | V13: 0.5696
A14: CN | E14: Webbproduktion | F14: 550 | J14: 2037 | R14: H1 | S14: NVS | T14: 0.13 | U14: 0.38 | V14: 0.51
A15: D1 | J15: 2038 | R15: H5 | S15: LABMED | T15: 0.1539 | U15: 0.38 | V15: 0.5339
A16: H1 | J16: 2039 | R16: H7 | S16: MedH | T16: 0.1415 | U16: 0.38 | V16: 0.5215
A17: H5 | J17: 2040 | R17: H9 | S17: CLINTEC | T17: 0.126 | U17: 0.38 | V17: 0.506
A18: H7 | J18: 2041 | R18: K1 | S18: MMK | T18: 0.115 | U18: 0.38 | V18: 0.495
A19: H9 | J19: 2042 | R19: K2 | S19: MedS | T19: 0.165 | U19: 0.38 | V19: 0.545
A20: K1 | J20: 2043 | R20: K6 | S20: KBH | T20: 0.14 | U20: 0.38 | V20: 0.52
A21: K2 | R21: K7 | S21: OnkPat | T21: 0.0614 | U21: 0.38 | V21: 0.4414
A22: K6 | R22: K8 | S22: CNS | T22: 0.07 | U22: 0.38 | V22: 0.45
A23: K7 | R23: K9 | S23: GPH | T23: 0.1325 | U23: 0.38 | V23: 0.5125
A24: K8 | R24: OF | S24: DENTMED | T24: 0.141 | U24: 0.38 | V24: 0.521
A25: K9 | R25: OV | S25: Universitetstandvården | T25: 0.211 | U25: 0.0825 | V25: 0.2935
A26: LC | R26: S1 | S26: SÖS | T26: 0.1643 | U26: 0.38 | V26: 0.5443
A27: OF | R27: TL | S27: Undervisning och lärande | T27: 0.12 | U27: 0.38 | V27: 0.5
A28: OV
A29: S1
A30: TL
A31: UE
A32: UF
A33: UG
A34: UI
A35: UK
A36: UL
A37: US

Sheet Uppföljning Inst
C1: INSTITUTION - STÖD FÖR BUDGET TILL UBW
C3: Inledning Denna flik summerar kostnader och intäkter som fyllts in i kalkylfliken och återvisar dem i en budget modell som kan enkelt föras in i UBWs Saldo tabell för uppföljningsändamål. Posterna hämtas till olika konton beroende på vad som fyllts i under respektive rubrik i kalkylen. OBS! Kopiera endast gråa fält och klistra in direkt i UBW (Ctrl + C & Ctrl + V). Se gärna UBW handbok på medarbetarportalen för ytterligare instruktioner om hur funktionen nyttjas.
D11: TOTAL BUDGET
D13: RR2 | E13: Beskrivning | F13: Konto | G13: Inst | H13: Proj | I13: Fin | J13: Anl | K13: Mpt | L13: Verks | M13: Text | N13: Per | O13: Budget (BB)
D14: 12 | E14: Intäkter av uppdrag | F14: 33 | G14: =IF('Beställd utbildning'!$G$22="","",LEFT('Beställd utbildning'!$G$22,2)) ->  | H14: =IF('Beställd utbildning'!$G$26="","FYLL I PROJEKTNUMMER",'Beställd utbildning'!$G$26) -> FYLL I PROJEKTNUMMER | M14: ="Budget totalt "&'Beställd utbildning'!$G$28 -> Budget totalt | N14: ='Beställd utbildning'!$H$23&'Beställd utbildning'!$G$23 ->  | O14: =-'Beställd utbildning'!J111 -> 0
D15: 21 | E15: Personalkostnader | F15: 40 | G15: =IF('Beställd utbildning'!$G$22="","",LEFT('Beställd utbildning'!$G$22,2)) ->  | H15: =IF('Beställd utbildning'!$G$26="","FYLL I PROJEKTNUMMER",'Beställd utbildning'!$G$26) -> FYLL I PROJEKTNUMMER | M15: ="Budget totalt "&'Beställd utbildning'!$G$28 -> Budget totalt | N15: ='Beställd utbildning'!$H$23&'Beställd utbildning'!$G$23 ->  | O15: ='Beställd utbildning'!K57 -> 0
D16: 221 | E16: Gemensammakostnader | F16: 499 | G16: =IF('Beställd utbildning'!$G$22="","",LEFT('Beställd utbildning'!$G$22,2)) ->  | H16: =IF('Beställd utbildning'!$G$26="","FYLL I PROJEKTNUMMER",'Beställd utbildning'!$G$26) -> FYLL I PROJEKTNUMMER | M16: ="Budget totalt "&'Beställd utbildning'!$G$28 -> Budget totalt | N16: ='Beställd utbildning'!$H$23&'Beställd utbildning'!$G$23 ->  | O16: ='Beställd utbildning'!K106 -> 0
D17: 22 | E17: Lokalkostnader | F17: 50 | G17: =IF('Beställd utbildning'!$G$22="","",LEFT('Beställd utbildning'!$G$22,2)) ->  | H17: =IF('Beställd utbildning'!$G$26="","FYLL I PROJEKTNUMMER",'Beställd utbildning'!$G$26) -> FYLL I PROJEKTNUMMER | M17: ="Budget totalt "&'Beställd utbildning'!$G$28 -> Budget totalt | N17: ='Beställd utbildning'!$H$23&'Beställd utbildning'!$G$23 ->  | O17: ='Beställd utbildning'!K84 -> 0
D18: 23 | E18: Övriga driftskostnader | F18: 52 | G18: =IF('Beställd utbildning'!$G$22="","",LEFT('Beställd utbildning'!$G$22,2)) ->  | H18: =IF('Beställd utbildning'!$G$26="","FYLL I PROJEKTNUMMER",'Beställd utbildning'!$G$26) -> FYLL I PROJEKTNUMMER | M18: ="Budget totalt "&'Beställd utbildning'!$G$28 -> Budget totalt | N18: ='Beställd utbildning'!$H$23&'Beställd utbildning'!$G$23 ->  | O18: ='Beställd utbildning'!K74 -> 0
